fUST/lending_fUST_20240626
["ID","MTS","AMOUNT","RATE_DAILY","PERIOD"]
[330430770,1719391832372,-460.94533042,0.00016438,2]
[330430771,1719391832384,-1007.88974121,0.00016438,2]
[330430857,1719391840518,-3565.98052,0.00016438,2]
[330430858,1719391840667,-1674.79371648,0.00016438,2]
[330431019,1719393043718,-554.98703826,0.00016379,2]
[330431108,1719394150348,295.553264,0.00013974,2]
[330431143,1719394233415,-300.0,0.00014272,2]
[330431144,1719394233426,-252.72494088,0.00014272,2]
[330431145,1719394233438,-47.27505912,0.00014272,2]
[330431146,1719394233448,-514.18790892,0.00014273,2]
[330431169,1719394247222,-613.8,0.00014273,2]
[330431177,1719394742709,430.721263,0.00013699,2]
[330431178,1719394752171,2085.1188204,0.00013525,2]
[330431179,1719394797193,3767.28917554,0.00013525,2]
[330431186,1719394905295,271.3834463,0.00013812,2]
[330431188,1719395289185,712.530853,0.00013699,2]
[330431189,1719395301538,24900.0,0.00013633,2]
[330431305,1719395440376,-3000.0,0.0001407,2]
[330431306,1719395440386,-3360.12225057,0.00014119,2]
[330431308,1719395440396,-268.67671038,0.00014172,2]
[330431309,1719395440405,-990.65106447,0.00014271,2]
[330431310,1719395440414,-1000.0,0.00014272,2]
[330431311,1719395440423,-910.46931583,0.00014272,2]
[330431312,1719395440432,-878.64970246,0.00014674,2]
[330431313,1719395440441,-300.0,0.00014771,2]
[330431314,1719395440450,-233.0,0.00014771,2]
[330431315,1719395440459,-182.9340405,0.00015378,2]
[330431316,1719395440468,-1000.0,0.00015642,2]
[330431317,1719395440477,-153.0000001,0.00015652,2]
[330431318,1719395440487,-169.81864,0.00015808,2]
[330431319,1719395440496,-137.68566183,0.00015808,2]
[330431321,1719395440701,-155.62813117,0.00015808,2]
[330431322,1719395440710,-254.76466,0.00015808,2]
[330431323,1719395440720,-333.800602,0.000159,2]
[330431324,1719395440730,-153.0,0.000159,2]
[330431325,1719395440739,-1000.0,0.00016,5]
[330431326,1719395440748,-153.0,0.00016128,2]
[330431327,1719395440757,-153.0,0.00016128,2]
[330431328,1719395440767,-321.013,0.0001622,2]
[330431329,1719395440776,-657.59499617,0.000163,2]
[330431330,1719395440792,-340.99500383,0.000163,2]
[330431331,1719395440802,-155.18175664,0.00016379,2]
[330431332,1719395440812,-500.0,0.00016438,2]
[330431333,1719395440821,-2802.81,0.00016438,2]
[330431334,1719395440830,-709.42,0.00016438,2]
[330431335,1719395440839,-7541.27,0.00016438,2]
[330431336,1719395440853,-21.83139851,0.00016438,2]
[330431353,1719395443412,-595.33913447,0.00016438,2]
[330431354,1719395443425,-266.75047299,0.00016438,2]
[330431355,1719395443436,-335.72197734,0.00016438,2]
[330431356,1719395443448,-1723.44721872,0.00016438,2]
[330431389,1719395446378,-533.18699182,0.00016438,2]
[330431392,1719395446389,-2607.29866718,0.00016438,2]
[330431411,1719395446554,-372.66614524,0.00016438,2]
[330431539,1719396424945,154.83742071,9.999e-05,2]
[330431540,1719396481439,242.2945694,0.0001212,2]
[330431579,1719396632927,-193.35690388,0.00014272,2]
[330431580,1719396632939,-300.0,0.00014918,2]
[330431581,1719396632948,-5619.04309612,0.00014919,2]
[330431582,1719396632960,-1014.47877935,0.00014919,2]
[330431628,1719396638446,-430.09855656,0.00014919,2]
[330431629,1719396638475,-3050.0,0.00014919,2]
[330431630,1719396638488,-4104.33487194,0.00014919,2]
[330431716,1719396640610,-999.9933705,0.00014919,2]
[330431718,1719396640621,-9682.05132553,0.00014919,2]
[330431720,1719396640631,-604.850537,0.00015254,2]
[330431722,1719396640640,-154.97293751,0.00015807,2]
[330431724,1719396640650,-600.0,0.0001584,2]
[330431726,1719396640659,-1000.0,0.00016,5]
[330431728,1719396640668,-876.0,0.00016005,2]
[330431730,1719396640678,-205.8284286,0.00016164,2]
[330431732,1719396640687,-205.8284286,0.00016164,2]
[330431734,1719396640697,-205.8284286,0.00016164,2]
[330431736,1719396640706,-205.8284286,0.00016164,2]
[330431738,1719396640717,-768.81848967,0.00016172,2]
[330431740,1719396640727,-153.0,0.00016178,2]
[330431742,1719396640738,-216.08546463,0.00016199,2]
[330431744,1719396640748,-153.0,0.000162,2]
[330431746,1719396640758,-153.0,0.000162,2]
[330431748,1719396640768,-205.8284286,0.000162,2]
[330431750,1719396640777,-168.58346989,0.00016273,2]
[330431752,1719396640787,-155.88897301,0.00016305,2]
[330431754,1719396640796,-41498.02416467,0.00016306,2]
[330431756,1719396640805,-5281.22672423,0.00016306,2]
[330431758,1719396640815,-154.83742071,0.00016336,2]
[330431760,1719396640824,-1168.90618156,0.00016337,2]
[330431762,1719396640836,-420.0,0.0001641,2]
[330431765,1719396640845,-153.243,0.00016436,2]
[330431768,1719396640854,-1000.0,0.00016437,2]
[330431771,1719396640864,-151.0,0.00016437,2]
[330431773,1719396640873,-500.0,0.00016438,2]
[330431775,1719396640883,-3355.76,0.00016438,2]
[330431777,1719396640897,-500.0,0.00016438,2]
[330431779,1719396640906,-786.43,0.00016438,2]
[330431781,1719396640915,-500.0,0.00016438,2]
[330431782,1719396640924,-1413.6,0.00016438,2]
[330431784,1719396640934,-1413.6,0.00016438,2]
[330431786,1719396640944,-1413.6,0.00016438,2]
[330431788,1719396640953,-1413.6,0.00016438,2]
[330431790,1719396640963,-1413.6,0.00016438,2]
[330431793,1719396640974,-1413.6,0.00016438,2]
[330431794,1719396640985,-1413.6,0.00016438,2]
[330431796,1719396640994,-854.89,0.00016438,2]
[330431798,1719396641003,-500.0,0.00016438,2]
[330431800,1719396641014,-500.0,0.00016438,2]
[330431802,1719396641023,-500.0,0.00016438,2]
[330431804,1719396641032,-655.12,0.00016438,2]
[330431806,1719396641042,-500.0,0.00016438,2]
[330431808,1719396641051,-151.0,0.00016438,2]
[330431809,1719396641061,-263.0,0.00016438,2]
[330431810,1719396641069,-250.0,0.00016438,2]
[330431811,1719396641079,-534.75107083,0.00016438,2]
[330431812,1719396641087,-500.0,0.00016438,2]
[330431813,1719396641097,-1610.54,0.00016438,2]
[330431814,1719396641106,-155.492617,0.00016438,2]
[330431815,1719396641115,-500.0,0.00016438,2]
[330431816,1719396641124,-500.0,0.00016438,2]
[330431817,1719396641133,-500.0,0.00016438,2]
[330431818,1719396641142,-500.0,0.00016438,2]
[330431819,1719396641151,-500.0,0.00016438,2]
[330431820,1719396641160,-952.96,0.00016438,2]
[330431821,1719396641168,-717.89,0.00016438,2]
[330431822,1719396641177,-757.21,0.00016438,2]
[330431823,1719396641186,-500.0,0.00016438,2]
[330431824,1719396641195,-579.31,0.00016438,2]
[330431825,1719396641204,-500.0,0.00016438,2]
[330431826,1719396641213,-500.0,0.00016438,2]
[330431827,1719396641222,-503.92,0.00016438,2]
[330431828,1719396641231,-500.0,0.00016438,2]
[330431829,1719396641240,-500.0,0.00016438,2]
[330431830,1719396641249,-500.0,0.00016438,2]
[330431831,1719396641258,-500.0,0.00016438,2]
[330431832,1719396641266,-500.0,0.00016438,2]
[330431833,1719396641275,-500.0,0.00016438,2]
[330431834,1719396641284,-500.0,0.00016438,2]
[330431835,1719396641293,-500.0,0.00016438,2]
[330431836,1719396641302,-330.75808728,0.00016438,2]
[330431837,1719396641311,-1231.98,0.00016438,2]
[330431838,1719396641319,-500.0,0.00016438,2]
[330431839,1719396641329,-500.0,0.00016438,2]
[330431840,1719396641338,-500.0,0.00016438,2]
[330431841,1719396641346,-500.0,0.00016438,2]
[330431843,1719396641356,-500.0,0.00016438,2]
[330431844,1719396641365,-500.0,0.00016438,2]
[330431846,1719396641374,-500.0,0.00016438,2]
[330431848,1719396641383,-500.0,0.00016438,2]
[330431850,1719396641392,-500.0,0.00016438,2]
[330431852,1719396641402,-500.0,0.00016438,2]
[330431854,1719396641411,-500.0,0.00016438,2]
[330431856,1719396641421,-613.76,0.00016438,2]
[330431858,1719396641430,-518.37120722,0.00016438,2]
[330431860,1719396641439,-1053.69,0.00016438,2]
[330431862,1719396641448,-500.0,0.00016438,2]
[330431864,1719396641457,-500.0,0.00016438,2]
[330431866,1719396641467,-501.51077246,0.00016438,2]
[330431868,1719396641476,-500.0,0.00016438,2]
[330431870,1719396641485,-1367.9,0.00016438,2]
[330431872,1719396641493,-500.0,0.00016438,2]
[330431874,1719396641502,-524.54,0.00016438,2]
[330431876,1719396641511,-500.0,0.00016438,2]
[330431878,1719396641520,-500.0,0.00016438,2]
[330431880,1719396641529,-500.0,0.00016438,2]
[330431882,1719396641538,-500.0,0.00016438,2]
[330431884,1719396641547,-886.4,0.00016438,2]
[330431886,1719396641557,-500.0,0.00016438,2]
[330431888,1719396641566,-1364.58,0.00016438,2]
[330431890,1719396641575,-545.24211242,0.00016438,2]
[330431892,1719396641586,-1054.09,0.00016438,2]
[330431894,1719396641595,-379.28915712,0.00016438,2]
[330431896,1719396641604,-555.03,0.00016438,2]
[330431897,1719396641613,-500.0,0.00016438,2]
[330431900,1719396641623,-500.0,0.00016438,2]
[330431901,1719396641631,-1182.75,0.00016438,2]
[330431904,1719396641640,-1887.48,0.00016438,2]
[330431905,1719396641650,-500.0,0.00016438,2]
[330431907,1719396641659,-500.0,0.00016438,2]
[330431909,1719396641668,-500.0,0.00016438,2]
[330431911,1719396641677,-500.0,0.00016438,2]
[330431913,1719396641686,-1214.37,0.00016438,2]
[330431915,1719396641695,-1081.45,0.00016438,2]
[330431917,1719396641704,-500.0,0.00016438,2]
[330431919,1719396641716,-572.75,0.00016438,2]
[330431922,1719396641725,-793.15,0.00016438,2]
[330431924,1719396641735,-13572.17,0.00016438,2]
[330431926,1719396641744,-500.0,0.00016438,2]
[330431928,1719396641753,-503.84308785,0.00016438,2]
[330431930,1719396641762,-504.11275918,0.00016438,2]
[330431932,1719396641772,-500.0,0.00016438,2]
[330431933,1719396641781,-500.0,0.00016438,2]
[330431936,1719396641790,-301.75928595,0.00016438,2]
[330431937,1719396641799,-500.0,0.00016438,2]
[330431939,1719396641808,-717.49,0.00016438,2]
[330431942,1719396641818,-500.0,0.00016438,2]
[330431944,1719396641827,-500.0,0.00016438,2]
[330431946,1719396641837,-588.93,0.00016438,2]
[330431948,1719396641847,-500.0,0.00016438,2]
[330431949,1719396641856,-500.0,0.00016438,2]
[330431952,1719396641865,-500.0,0.00016438,2]
[330431954,1719396641874,-774.4,0.00016438,2]
[330431955,1719396641883,-1517.17,0.00016438,2]
[330431957,1719396641895,-232.1,0.00016438,2]
[330431959,1719396641906,-1615.42,0.00016438,2]
[330431961,1719396641916,-29502.2,0.00016438,2]
[330431963,1719396641926,-500.0,0.00016438,2]
[330431965,1719396641935,-500.0,0.00016438,2]
[330431967,1719396641944,-500.0,0.00016438,2]
[330431969,1719396641953,-3119.6,0.00016438,2]
[330431971,1719396641962,-5727.59,0.00016438,2]
[330431973,1719396641973,-502.78320934,0.00016438,2]
[330431975,1719396641983,-503.31356311,0.00016438,2]
[330431977,1719396641992,-5809.85,0.00016438,2]
[330431979,1719396642001,-500.0,0.00016438,2]
[330431981,1719396642010,-509.35775205,0.00016438,2]
[330431983,1719396642019,-500.0,0.00016438,2]
[330431985,1719396642028,-505.89750023,0.00016438,2]
[330431987,1719396642037,-510.1457704,0.00016438,2]
[330431989,1719396642047,-506.02184466,0.00016438,2]
[330431991,1719396642057,-500.0,0.00016438,2]
[330431993,1719396642066,-500.0,0.00016438,2]
[330431995,1719396642075,-500.0,0.00016438,2]
[330431998,1719396642086,-500.0,0.00016438,2]
[330432000,1719396642097,-2488.83,0.00016438,2]
[330432002,1719396642106,-500.0,0.00016438,2]
[330432004,1719396642117,-502.92027951,0.00016438,2]
[330432005,1719396642127,-743.5,0.00016438,2]
[330432008,1719396642137,-511.49463677,0.00016438,2]
[330432010,1719396642146,-500.0,0.00016438,2]
[330432011,1719396642156,-771.48,0.00016438,2]
[330432013,1719396642166,-500.0,0.00016438,2]
[330432015,1719396642175,-500.0,0.00016438,2]
[330432017,1719396642184,-806.34,0.00016438,2]
[330432019,1719396642193,-4713.46,0.00016438,2]
[330432021,1719396642202,-784.89,0.00016438,2]
[330432023,1719396642211,-517.231336,0.00016438,2]
[330432025,1719396642220,-151.0,0.00016438,2]
[330432027,1719396642230,-151.0,0.00016438,2]
[330432030,1719396642239,-275.25273,0.00016438,2]
[330432031,1719396642248,-500.0,0.00016438,2]
[330432033,1719396642258,-500.0,0.00016438,2]
[330432035,1719396642267,-500.0,0.00016438,2]
[330432038,1719396642276,-505.33753905,0.00016438,2]
[330432039,1719396642286,-500.0,0.00016438,2]
[330432042,1719396642296,-8911.28,0.00016438,2]
[330432044,1719396642305,-1868.74,0.00016438,2]
[330432045,1719396642315,-500.0,0.00016438,2]
[330432047,1719396642323,-2840.62,0.00016438,2]
[330432050,1719396642336,-1027.99,0.00016438,2]
[330432052,1719396642345,-1093.39,0.00016438,2]
[330432054,1719396642354,-985.16,0.00016438,2]
[330432056,1719396642363,-6855.12,0.00016438,2]
[330432058,1719396642372,-500.0,0.00016438,2]
[330432060,1719396642380,-13084.35,0.00016438,2]
[330432061,1719396642389,-809.75,0.00016438,2]
[330432063,1719396642397,-598.3760078,0.00016438,2]
[330432065,1719396642406,-500.0,0.00016438,2]
[330432067,1719396642416,-13241.0,0.00016438,2]
[330432069,1719396642425,-955.47,0.00016438,2]
[330432071,1719396642435,-1045.09,0.00016438,2]
[330432074,1719396642444,-503.43712126,0.00016438,2]
[330432089,1719396642576,-4742.84,0.00016438,2]
[330432091,1719396642587,-895.57,0.00016438,2]
[330432093,1719396642596,-1485.8,0.00016438,2]
[330432095,1719396642605,-518.38,0.00016438,2]
[330432097,1719396642614,-500.0,0.00016438,2]
[330432099,1719396642623,-516.65587978,0.00016438,2]
[330432101,1719396642632,-516.19668802,0.00016438,2]
[330432103,1719396642641,-2675.01,0.00016438,2]
[330432105,1719396642650,-1372.28,0.00016438,2]
[330432107,1719396642660,-500.0,0.00016438,2]
[330432110,1719396642670,-2686.03,0.00016438,2]
[330432112,1719396642679,-785.01,0.00016438,2]
[330432114,1719396642689,-1588.92,0.00016438,2]
[330432116,1719396642698,-500.0,0.00016438,2]
[330432118,1719396642707,-500.0,0.00016438,2]
[330432119,1719396642717,-1380.6,0.00016438,2]
[330432121,1719396642727,-869.45,0.00016438,2]
[330432123,1719396642736,-571.48,0.00016438,2]
[330432125,1719396642745,-500.0,0.00016438,2]
[330432127,1719396642754,-811.29,0.00016438,2]
[330432129,1719396642763,-500.0,0.00016438,2]
[330432131,1719396642772,-500.0,0.00016438,2]
[330432133,1719396642782,-500.0,0.00016438,2]
[330432135,1719396642791,-5042.8,0.00016438,2]
[330432137,1719396642800,-679.86,0.00016438,2]
[330432139,1719396642810,-602.17,0.00016438,2]
[330432141,1719396642819,-500.0,0.00016438,2]
[330432143,1719396642828,-500.0,0.00016438,2]
[330432145,1719396642839,-282386.70435543,0.000165,2]
[330432147,1719396642848,-276.15513312,0.000165,2]
[330432149,1719396642857,-490.15991609,0.000165,2]
[330432151,1719396642866,-500.0,0.00016647,2]
[330432153,1719396642876,-20000.0,0.00016648,2]
[330432156,1719396642888,-1413.6,0.0001671,2]
[330432158,1719396642898,-1413.6,0.00016711,2]
[330432162,1719396642907,-1413.6,0.00016711,2]
[330432165,1719396642917,-1413.6,0.00016711,2]
[330432169,1719396642927,-1413.6,0.00016711,2]
[330432171,1719396642936,-500.0,0.00016711,2]
[330432173,1719396642945,-500.0,0.00016711,2]
[330432175,1719396642954,-500.0,0.00016711,2]
[330432177,1719396642964,-500.0,0.00016711,2]
[330432179,1719396642973,-500.0,0.00016711,2]
[330432181,1719396642984,-500.0,0.00016711,2]
[330432183,1719396642993,-14053.28916353,0.00016712,2]
[330432185,1719396643002,-500.0,0.00016712,2]
[330432188,1719396643011,-500.0,0.00016712,2]
[330432193,1719396643021,-3355.76,0.00016712,2]
[330432197,1719396643030,-500.0,0.00016712,2]
[330432201,1719396643039,-786.43,0.00016712,2]
[330432203,1719396643048,-500.0,0.00016712,2]
[330432206,1719396643057,-854.89,0.00016712,2]
[330432207,1719396643066,-500.0,0.00016712,2]
[330432211,1719396643075,-500.0,0.00016712,2]
[330432213,1719396643086,-500.0,0.00016712,2]
[330432215,1719396643094,-655.12,0.00016712,2]
[330432217,1719396643103,-500.0,0.00016712,2]
[330432219,1719396643112,-250.0,0.00016712,2]
[330432221,1719396643121,-500.0,0.00016712,2]
[330432223,1719396643130,-1610.54,0.00016712,2]
[330432225,1719396643139,-500.0,0.00016712,2]
[330432227,1719396643148,-500.0,0.00016712,2]
[330432229,1719396643157,-500.0,0.00016712,2]
[330432231,1719396643168,-500.0,0.00016712,2]
[330432233,1719396643177,-500.0,0.00016712,2]
[330432235,1719396643186,-952.96,0.00016712,2]
[330432237,1719396643195,-717.89,0.00016712,2]
[330432240,1719396643205,-757.21,0.00016712,2]
[330432241,1719396643214,-500.81407967,0.00016712,2]
[330432244,1719396643223,-579.31,0.00016712,2]
[330432245,1719396643233,-500.0,0.00016712,2]
[330432248,1719396643242,-503.92,0.00016712,2]
[330432249,1719396643251,-500.0,0.00016712,2]
[330432252,1719396643260,-502.06022546,0.00016712,2]
[330432254,1719396643269,-1231.98,0.00016712,2]
[330432256,1719396643278,-229.82127916,0.00016712,2]
[330432257,1719396643288,-521.33983943,0.00016712,2]
[330432259,1719396643298,-500.0,0.00016712,2]
[330432261,1719396643307,-500.0,0.00016712,2]
[330432264,1719396643316,-500.0,0.00016712,2]
[330432266,1719396643325,-500.0,0.00016712,2]
[330432268,1719396643336,-500.0,0.00016712,2]
[330432270,1719396643345,-500.0,0.00016712,2]
[330432272,1719396643354,-500.0,0.00016712,2]
[330432274,1719396643363,-500.0,0.00016712,2]
[330432275,1719396643372,-613.76,0.00016712,2]
[330432278,1719396643381,-1053.69,0.00016712,2]
[330432280,1719396643391,-500.0,0.00016712,2]
[330432282,1719396643399,-500.0,0.00016712,2]
[330432283,1719396643409,-500.0,0.00016712,2]
[330432286,1719396643418,-1367.9,0.00016712,2]
[330432287,1719396643427,-500.0,0.00016712,2]
[330432290,1719396643437,-524.54,0.00016712,2]
[330432291,1719396643446,-500.0,0.00016712,2]
[330432293,1719396643455,-500.0,0.00016712,2]
[330432296,1719396643464,-500.0,0.00016712,2]
[330432297,1719396643474,-886.4,0.00016712,2]
[330432300,1719396643485,-500.0,0.00016712,2]
[330432302,1719396643494,-1364.58,0.00016712,2]
[330432304,1719396643503,-1054.09,0.00016712,2]
[330432306,1719396643512,-555.03,0.00016712,2]
[330432308,1719396643521,-500.0,0.00016712,2]
[330432310,1719396643531,-500.0,0.00016712,2]
[330432312,1719396643540,-1182.75,0.00016712,2]
[330432313,1719396643549,-1887.48,0.00016712,2]
[330432316,1719396643558,-500.0,0.00016712,2]
[330432317,1719396643568,-500.0,0.00016712,2]
[330432319,1719396643577,-500.0,0.00016712,2]
[330432321,1719396643589,-500.0,0.00016712,2]
[330432323,1719396643597,-1214.37,0.00016712,2]
[330432325,1719396643606,-1081.45,0.00016712,2]
[330432327,1719396643615,-500.0,0.00016712,2]
[330432329,1719396643624,-572.75,0.00016712,2]
[330432331,1719396643632,-793.15,0.00016712,2]
[330432333,1719396643641,-13572.17,0.00016712,2]
[330432335,1719396643650,-500.0,0.00016712,2]
[330432338,1719396643660,-500.0,0.00016712,2]
[330432340,1719396643669,-500.0,0.00016712,2]
[330432342,1719396643679,-717.49,0.00016712,2]
[330432343,1719396643688,-500.0,0.00016712,2]
[330432345,1719396643698,-500.0,0.00016712,2]
[330432348,1719396643707,-588.93,0.00016712,2]
[330432350,1719396643717,-500.0,0.00016712,2]
[330432352,1719396643730,-500.0,0.00016712,2]
[330432354,1719396643739,-500.0,0.00016712,2]
[330432355,1719396643748,-774.4,0.00016712,2]
[330432357,1719396643758,-1263.43830603,0.00016712,2]
[330432360,1719396643775,-253.73169397,0.00016712,2]
[330432362,1719396643784,-232.1,0.00016712,2]
[330432364,1719396643794,-1615.42,0.00016712,2]
[330432367,1719396643803,-4242.26238166,0.00016712,2]
[330432369,1719396643814,-459.088,0.00016712,2]
[330432403,1719396644024,-204.2756354,0.00016164,2]
[330432405,1719396644033,-3709.9843646,0.00016712,2]
[330432411,1719396644076,-1569.04531376,0.00016712,2]
[330432413,1719396644089,-398.2042602,0.00016712,2]
[330432415,1719396644101,-19123.61567978,0.00016712,2]
[330432417,1719396644110,-500.0,0.00016712,2]
[330432419,1719396644119,-500.0,0.00016712,2]
[330432421,1719396644128,-500.0,0.00016712,2]
[330432423,1719396644138,-3119.6,0.00016712,2]
[330432425,1719396644147,-5727.59,0.00016712,2]
[330432427,1719396644156,-5809.85,0.00016712,2]
[330432429,1719396644165,-508.57302873,0.00016712,2]
[330432431,1719396644174,-500.0,0.00016712,2]
[330432433,1719396644183,-500.0,0.00016712,2]
[330432435,1719396644192,-500.0,0.00016712,2]
[330432437,1719396644201,-407.23553908,0.00016712,2]
[330432439,1719396644210,-500.0,0.00016712,2]
[330432441,1719396644219,-2488.83,0.00016712,2]
[330432443,1719396644228,-513.35409627,0.00016712,2]
[330432445,1719396644238,-743.5,0.00016712,2]
[330432447,1719396644247,-500.0,0.00016712,2]
[330432449,1719396644256,-771.48,0.00016712,2]
[330432451,1719396644266,-500.0,0.00016712,2]
[330432453,1719396644274,-500.0,0.00016712,2]
[330432455,1719396644283,-806.34,0.00016712,2]
[330432457,1719396644292,-4713.46,0.00016712,2]
[330432459,1719396644302,-784.89,0.00016712,2]
[330432461,1719396644310,-500.0,0.00016712,2]
[330432463,1719396644320,-506.51064887,0.00016712,2]
[330432465,1719396644330,-500.0,0.00016712,2]
[330432467,1719396644340,-500.0,0.00016712,2]
[330432469,1719396644349,-8911.28,0.00016712,2]
[330432471,1719396644358,-1868.74,0.00016712,2]
[330432473,1719396644367,-500.0,0.00016712,2]
[330432475,1719396644376,-2840.62,0.00016712,2]
[330432477,1719396644386,-1027.99,0.00016712,2]
[330432479,1719396644395,-1093.39,0.00016712,2]
[330432481,1719396644403,-985.16,0.00016712,2]
[330432483,1719396644412,-6855.12,0.00016712,2]
[330432485,1719396644421,-500.0,0.00016712,2]
[330432487,1719396644430,-13084.35,0.00016712,2]
[330432489,1719396644439,-809.75,0.00016712,2]
[330432491,1719396644448,-500.0,0.00016712,2]
[330432493,1719396644457,-955.47,0.00016712,2]
[330432495,1719396644466,-2393.20067142,0.00016712,2]
[330432744,1719396646780,-500.0,0.00016438,2]
[330432746,1719396646790,-500.0,0.00016438,2]
[330432748,1719396646799,-5250.3,0.00016438,2]
[330432750,1719396646808,-10847.79932858,0.00016712,2]
[330432752,1719396646817,-1045.09,0.00016712,2]
[330432754,1719396646826,-2637.8307985,0.00016712,2]
[330432756,1719396646840,-2105.0092015,0.00016712,2]
[330432758,1719396646849,-895.57,0.00016712,2]
[330432760,1719396646858,-1485.8,0.00016712,2]
[330432762,1719396646867,-518.38,0.00016712,2]
[330432764,1719396646877,-500.0,0.00016712,2]
[330432766,1719396646888,-2675.01,0.00016712,2]
[330432767,1719396646898,-1372.28,0.00016712,2]
[330432769,1719396646907,-500.0,0.00016712,2]
[330432771,1719396646916,-2686.03,0.00016712,2]
[330432773,1719396646925,-785.01,0.00016712,2]
[330432775,1719396646936,-1588.92,0.00016712,2]
[330432777,1719396646946,-500.0,0.00016712,2]
[330432779,1719396646955,-500.0,0.00016712,2]
[330432781,1719396646967,-1380.6,0.00016712,2]
[330432783,1719396646976,-869.45,0.00016712,2]
[330432785,1719396646985,-571.48,0.00016712,2]
[330432787,1719396646994,-500.0,0.00016712,2]
[330432788,1719396647004,-811.29,0.00016712,2]
[330432790,1719396647014,-500.0,0.00016712,2]
[330432792,1719396647025,-196.56286492,0.00016712,2]
[330432795,1719396647036,-303.43713508,0.00016712,2]
[330432796,1719396647046,-500.0,0.00016712,2]
[330432798,1719396647055,-1467.37490283,0.00016712,2]
[330433626,1719397277874,-150.0,0.00014911,2]
[330433635,1719397833541,-250.0,0.00014193,2]
[330433637,1719397833551,-300.0,0.00014899,2]
[330433639,1719397833560,-300.0,0.00014899,2]
[330433641,1719397833570,-10004.41444496,0.00014901,2]
[330433650,1719397838944,-309.59751782,0.00014192,2]
[330433653,1719397838954,-1865.69926668,0.00014901,2]
[330433888,1719398621105,728.418563,0.00013723,2]
[330433889,1719398783022,2728.0,0.00026,120]
[330433969,1719399038089,-184.32236017,0.00014272,2]
[330433970,1719399038099,-1810.04273737,0.00014367,2]
[330433971,1719399038108,-645.74533347,0.00014467,2]
[330434013,1719399043614,452.02151406,0.00026,120]
[330434065,1719399046645,-1359.58722383,0.00014467,2]
[330434067,1719399046657,-300.0,0.00014632,2]
[330434069,1719399046666,-2129.83378857,0.00014632,2]
[330434071,1719399046675,-15355.24670037,0.00014633,2]
[330434082,1719399249555,450.0,0.000225,30]
[330434086,1719399381984,150.83408251,0.00020204,30]
[330434087,1719399382042,150.83408251,0.000198,120]
[330434088,1719399484041,-480.567699,0.00014174,2]
[330434089,1719399484069,-3000.0,0.00014352,2]
[330434090,1719399484095,-990.49460368,0.00014632,2]
[330434091,1719399484122,-1914.82350377,0.00014657,2]
[330434092,1719399484149,-1487.40194776,0.00014918,2]
[330434093,1719399484177,-300.0,0.00014996,2]
[330434094,1719399484201,-3074.87437864,0.00014997,2]
[330434095,1719399484226,-13071.38873215,0.00014998,2]
[330434096,1719399484251,-24900.0,0.00014998,2]
[330434097,1719399499567,780.449135,0.00014918,2]
[330434101,1719399809338,150.83408251,0.00020441,30]
[330434102,1719399809396,150.83408251,0.00020032,120]
[330434139,1719400124563,-240.283849,0.00014014,2]
[330434214,1719400240791,-213.01897855,0.00014014,2]
[330434215,1719400240801,-1618.66906895,0.00014014,2]